fUSD/lending_fUSD_20251215
["ID","MTS","AMOUNT","RATE_DAILY","PERIOD"]
[398563188,1765830638350,-1051.0,0.00016441,2]
[398563189,1765830638360,-1782.53678,0.00016589,2]
[398563190,1765830638459,-2103.17131653,0.00016589,2]
[398563215,1765830644702,-790.07319809,0.00016589,2]
[398563216,1765830644714,-562.61881129,0.00016589,2]
[398563217,1765830644725,-429.495,0.00016589,2]
[398563218,1765830644735,-1244.52080482,0.00016589,2]
[398563219,1765830644747,-500.0,0.00016589,2]
[398563220,1765830644758,-1528.70657414,0.00016589,2]
[398563221,1765830644770,-28309.03059456,0.00016589,2]
[398563222,1765830644779,-190.01087269,0.00016599,2]
[398563223,1765830644788,-500.0,0.00016599,2]
[398563224,1765830644797,-209.35632717,0.00016599,2]
[398563225,1765830644807,-537.12971902,0.00016599,2]
[398563226,1765830644816,-38.22154705,0.000166,2]
[398563227,1765830644827,-411.88793493,0.000166,2]
[398563228,1765830644839,-14.07051802,0.000166,2]
[398563229,1765830644848,-838.39111282,0.000166,2]
[398563230,1765830644860,-605.34328718,0.000166,2]
[398563231,1765830644869,-983.605,0.000166,2]
[398563232,1765830644878,-2500.0,0.000166,2]
[398563233,1765830644887,-154.69529053,0.000166,2]
[398563234,1765830644896,-1796.12071739,0.000166,2]
[398563235,1765830644908,-3876.20267999,0.000166,2]
[398563236,1765830644917,-398.0,0.00016625,2]
[398563237,1765830644926,-187.0,0.00016625,2]
[398563238,1765830644935,-9999.99,0.00016625,2]
[398563239,1765830644944,-150.99,0.00016625,2]
[398563240,1765830644953,-1677.46,0.00016625,2]
[398563241,1765830644962,-4263.14,0.00016625,2]
[398563242,1765830644972,-9999.99,0.00016625,2]
[398563243,1765830644981,-500.0,0.00016635,2]
[398563244,1765830644992,-1748.0,0.00016635,2]
[398563245,1765830645001,-620.26346645,0.00016635,2]
[398563246,1765830645013,-200.0,0.00016635,2]
[398563247,1765830645023,-207.4,0.00016635,2]
[398563248,1765830645032,-215.0738,0.00016635,2]
[398563249,1765830645042,-223.0315306,0.00016635,2]
[398563250,1765830645052,-231.28369723,0.00016635,2]
[398563251,1765830645062,-239.84119403,0.00016635,2]
[398563252,1765830645071,-248.71531821,0.00016635,2]
[398563253,1765830645080,-257.91778498,0.00016635,2]
[398563254,1765830645090,-267.46074303,0.00016635,2]
[398563255,1765830645099,-300.0,0.00016635,2]
[398563256,1765830645110,-2108.92605538,0.0001666,2]
[398563257,1765830645119,-890.0,0.00016664,2]
[398563258,1765830645129,-1936.55,0.00016664,2]
[398563259,1765830645138,-175.8,0.00016664,2]
[398563260,1765830645147,-549.0,0.00016687,2]
[398563261,1765830645157,-553.64373807,0.0001669,2]
[398563262,1765830645167,-151.0,0.0001669,2]
[398563263,1765830645176,-1000.0,0.0001669,2]
[398563264,1765830645185,-1000.0,0.0001669,2]
[398563265,1765830645195,-1000.0,0.0001669,2]
[398563266,1765830645205,-1000.0,0.0001669,2]
[398563267,1765830645214,-624.66912467,0.0001669,2]
[398563268,1765830645224,-151.0,0.0001669,2]
[398563269,1765830645233,-151.0,0.0001669,2]
[398563270,1765830645243,-151.0,0.0001669,2]
[398563271,1765830645252,-151.0,0.0001669,2]
[398563272,1765830645262,-151.0,0.0001669,2]
[398563273,1765830645271,-151.0,0.0001669,2]
[398563274,1765830645281,-191.70727627,0.0001669,2]
[398563275,1765830645293,-151.0,0.0001669,2]
[398563276,1765830645302,-151.0,0.0001669,2]
[398563277,1765830645312,-151.0,0.0001669,2]
[398563278,1765830645321,-151.0,0.0001669,2]
[398563279,1765830645331,-151.0,0.0001669,2]
[398563280,1765830645340,-151.0,0.0001669,2]
[398563281,1765830645349,-151.0,0.0001669,2]
[398563282,1765830645358,-151.0,0.00016697,2]
[398563283,1765830645369,-540.0,0.00016698,2]
[398563284,1765830645378,-531.85,0.00016698,2]
[398563285,1765830645388,-511.37210944,0.00016699,2]
[398563286,1765830645397,-508.5401249,0.00016699,2]
[398563287,1765830645406,-452.42388811,0.00016699,2]
[398563288,1765830645415,-300.24817944,0.00016699,2]
[398563289,1765830645425,-464.18,0.000167,2]
[398563290,1765830645435,-150.0,0.000167,2]
[398563291,1765830645444,-168.43,0.00016712,2]
[398563292,1765830645454,-1000.0,0.00016721,2]
[398563293,1765830645464,-218.23688189,0.0001677,2]
[398563294,1765830645474,-1826.4785,0.000168,2]
[398563295,1765830645483,-1169.4619,0.000168,2]
[398563296,1765830645493,-1000.0,0.000168,2]
[398563297,1765830645502,-500.0,0.00016822,2]
[398563298,1765830645512,-51609.35846653,0.0001683,2]
[398563299,1765830645521,-5672.32339736,0.00016856,2]
[398563300,1765830645531,-199.0,0.00016889,2]
[398563301,1765830645541,-165.72526,0.00016892,2]
[398563302,1765830645550,-500.0,0.00016899,2]
[398563303,1765830645560,-500.0,0.00016899,2]
[398563304,1765830645569,-305.17878308,0.00016899,2]
[398563305,1765830645579,-500.0,0.00016899,2]
[398563306,1765830645588,-641.1096514,0.00016899,2]
[398563307,1765830645597,-500.0,0.00016899,2]
[398563308,1765830645607,-500.0,0.00016899,2]
[398563309,1765830645617,-500.0,0.00016899,2]
[398563310,1765830645627,-500.0,0.00016899,2]
[398563311,1765830645637,-3000.0,0.000169,2]
[398563312,1765830645646,-3000.0,0.000169,2]
[398563313,1765830645656,-1000.0,0.000169,2]
[398563314,1765830645666,-500.0,0.00016908,2]
[398563315,1765830645675,-302.96168815,0.00016912,2]
[398563316,1765830645684,-531.85,0.00016972,2]
[398563317,1765830645694,-500.0,0.00016986,2]
[398563318,1765830645703,-151.0,0.00016989,2]
[398563319,1765830645712,-266.01363219,0.00016989,2]
[398563320,1765830645722,-150.0,0.0001699,2]
[398563321,1765830645731,-7404.81924467,0.00016992,2]
[398563322,1765830645743,-1212.12124319,0.00016992,2]
[398563323,1765830646162,-666.106399,0.00016992,2]
[398563324,1765830646173,-3000.0,0.00016992,2]
[398563327,1765830646203,-475.776,0.00016992,2]
[398563328,1765830646241,-2207.96057256,0.00016992,2]
[398563329,1765830646252,-3041.50746755,0.00016992,2]
[398563330,1765830646263,-371.28768794,0.00016992,2]
[398563331,1765830646274,-1856.47342881,0.00016992,2]
[398563332,1765830646285,-8033.95283496,0.00016992,2]
[398563333,1765830646322,-1483.74250596,0.00016992,2]
[398563334,1765830646334,-115588.843101,0.00016992,2]
[398563342,1765830646626,-1379.97598005,0.00016892,2]
[398563344,1765830646636,-4899.89761991,0.00016992,2]
[398563346,1765830646647,-6673.14021258,0.00016992,2]
[398563348,1765830646658,-5242.70568648,0.00016992,2]
[398563462,1765830695383,-404.2036,0.00016992,2]
[398563503,1765831257369,-804.28672869,0.00015748,2]
[398563504,1765831259628,-192.8403542,0.00015748,2]
[398563505,1765831261643,-385.20657515,0.00015748,2]
[398563506,1765831264202,-300.0,0.00015748,2]
[398563507,1765831266931,-217.61650403,0.00015748,2]
[398563508,1765831270761,-324.90287186,0.00015748,2]
[398563509,1765831272250,-300.0,0.00015748,2]
[398563510,1765831275248,-189.51295941,0.00015748,2]
[398563516,1765831400295,200.0,0.00015622,2]
[398563521,1765831419480,171.6085101,0.00015,2]
[398563635,1765831831522,-281.0,0.00015748,2]
[398563636,1765831831532,-5.87498566,0.00015748,2]
[398563637,1765831831542,-244.13,0.00015825,2]
[398563638,1765831831551,-1852.42,0.00015879,2]
[398563639,1765831831560,-353.20549967,0.00016015,2]
[398563640,1765831831569,-300.0,0.00016115,2]
[398563641,1765831831578,-300.0,0.00016115,2]
[398563642,1765831831587,-1200.0,0.00016115,2]
[398563643,1765831831597,-300.0,0.00016115,2]
[398563644,1765831831607,-7173.93,0.00016116,5]
[398563645,1765831831616,-353.20549965,0.00016143,2]
[398563646,1765831831625,-500.0,0.00016173,2]
[398563647,1765831831634,-353.20549965,0.00016272,2]
[398563648,1765831831644,-150.0,0.00016278,2]
[398563650,1765831831653,-550.0,0.00016399,2]
[398563652,1765831831662,-150.99,0.000164,2]
[398563653,1765831831671,-9999.99,0.000164,2]
[398563655,1765831831680,-3068.78153184,0.000164,2]
[398563658,1765831831701,-474.78399393,0.000164,2]
[398563661,1765831831723,-994.29319219,0.000164,2]
[398563663,1765831831734,-2500.0,0.000164,2]
[398563665,1765831831743,-389.8317885,0.000164,2]
[398563667,1765831831751,-754.28784313,0.000164,2]
[398563669,1765831831762,-13285.14,0.000164,2]
[398563672,1765831831774,-4308.48920621,0.000164,2]
[398563674,1765831831785,-5187.80675912,0.000164,2]
[398563738,1765831837581,-1985.34632978,0.000164,2]
[398563739,1765831837743,-5000.00603752,0.000164,2]
[398563759,1765831843574,-925.9169098,0.00015927,3]
[398563760,1765831843589,-73.0830902,0.00015927,3]
[398563761,1765831843598,-1426.9169098,0.000164,2]
[398563762,1765831843609,-1000.0,0.000164,2]
[398563763,1765831843622,-463.2550173,0.000164,2]
[398563764,1765831843633,-1765.99018171,0.000164,2]
[398563765,1765831845528,-264.208,0.000164,2]
[398563766,1765831845586,-2065.60179972,0.000164,2]
[398563767,1765831845597,-522.52533801,0.000164,2]
[398563768,1765831845608,-644.1737403,0.000164,2]
[398563769,1765831845707,-290.1,0.000164,2]
[398563770,1765831845749,-346.739996,0.000164,2]
[398563771,1765831845760,-663.7042298,0.000164,2]
[398563788,1765832174057,250.0,0.00015528,2]
[398563789,1765832199618,1498.46,0.00015616,2]
[398563791,1765832376930,200.0,0.00015399,2]
[398563792,1765832521200,825.91,0.00013699,2]
[398563793,1765832740137,1600.0,0.0001532,2]
[398563797,1765832804351,11828.05,0.00015307,2]
[398563816,1765833032318,-273.84430536,0.000159,2]
[398563817,1765833032329,-79.36119429,0.000159,2]
[398563818,1765833032338,-300.0,0.00015984,2]
[398563819,1765833032347,-300.0,0.00015984,2]
[398563820,1765833032357,-300.0,0.00015984,2]
[398563821,1765833032366,-1200.0,0.00015984,2]
[398563822,1765833032375,-500.0,0.00015985,2]
[398563823,1765833032384,-500.0,0.00015985,2]
[398563824,1765833032393,-500.0,0.00015985,2]
[398563825,1765833032402,-150.0,0.00015985,2]
[398563826,1765833032411,-500.0,0.00015985,2]
[398563827,1765833032420,-500.0,0.00015985,2]
[398563828,1765833032430,-150.0,0.00015985,2]
[398563829,1765833032439,-590.0,0.00015985,2]
[398563830,1765833032448,-150.0,0.00015985,2]
[398563831,1765833032457,-500.0,0.00015985,2]
[398563832,1765833032467,-267.73260897,0.00015985,2]
[398563833,1765833032483,-232.26739103,0.00015985,2]
[398563834,1765833032492,-142.86060889,0.00015985,2]
[398563835,1765833032503,-7.13939111,0.00015985,2]
[398563836,1765833032512,-263.89783389,0.00015985,2]
[398563837,1765833032523,-484.112775,0.00015985,2]
[398563838,1765833032540,-474.202935,0.00015985,2]
[398563839,1765833032551,-1321.78645611,0.00015985,2]
[398563840,1765833032560,-150.0,0.00015985,2]
[398563841,1765833032569,-497.0,0.00015985,2]
[398563842,1765833032578,-152.89564994,0.00015985,2]
[398563843,1765833032587,-500.0,0.00015985,2]
[398563844,1765833032596,-500.0,0.00015985,2]
[398563845,1765833032605,-500.0,0.00015985,2]
[398563846,1765833032614,-121.02306146,0.00015985,2]
[398563847,1765833032626,-28.97693854,0.00015985,2]
[398563848,1765833032635,-150.0,0.00015985,2]
[398563849,1765833032644,-500.0,0.00015985,2]
[398563850,1765833032653,-150.0,0.00015985,2]
[398563851,1765833032663,-500.0,0.00015985,2]
[398563852,1765833032672,-500.0,0.00015985,2]
[398563853,1765833032681,-408.09658783,0.00015985,2]
[398563854,1765833032692,-91.90341217,0.00015985,2]
[398563855,1765833032702,-150.0,0.00015985,2]
[398563856,1765833032712,-56.58691123,0.00015985,2]
[398563857,1765833032723,-443.41308877,0.00015985,2]
[398563858,1765833032732,-150.0,0.00015986,2]
[398563859,1765833032742,-150.0,0.00015986,2]
[398563860,1765833032752,-161.31415046,0.00015986,2]
[398563861,1765833032763,-500.0,0.00015986,2]
[398563862,1765833032772,-198.24496327,0.00015986,2]
[398563863,1765833032782,-301.75503673,0.00015986,2]
[398563864,1765833032791,-650.0,0.00015986,2]
[398563865,1765833032800,-240.98151327,0.00015986,2]
[398563866,1765833032812,-259.01848673,0.00015986,2]
[398563867,1765833032821,-287.39420317,0.00015986,2]
[398563868,1765833032831,-212.60579683,0.00015986,2]
[398563869,1765833032842,-57.24288015,0.00015986,2]
[398563870,1765833032853,-171.57521224,0.00015986,2]
[398563871,1765833032864,-150.0,0.00015986,2]
[398563872,1765833032873,-500.0,0.00015986,2]
[398563873,1765833032882,-150.82561092,0.00015986,2]
[398563874,1765833032892,-150.0,0.00015986,2]
[398563875,1765833032901,-150.0,0.00015986,2]
[398563876,1765833032911,-140.85389311,0.00015986,2]
[398563877,1765833032922,-359.14610689,0.00015986,2]
[398563878,1765833032932,-170.21872884,0.00015986,2]
[398563879,1765833032943,-72.11474748,0.00016,5]
[398563880,1765833032959,-427.88525252,0.00016,5]
[398563881,1765833032969,-183.64704152,0.00016,2]
[398563882,1765833032978,-500.0,0.00016122,2]
[398563883,1765833032988,-500.0,0.00016122,2]
[398563884,1765833032999,-500.0,0.00016122,2]
[398563885,1765833033008,-500.0,0.00016122,2]
[398563886,1765833033018,-407.15734767,0.00016122,2]
[398563887,1765833033027,-590.0,0.00016122,2]
[398563888,1765833033037,-500.0,0.00016122,2]
[398563889,1765833033047,-500.0,0.00016122,2]
[398563890,1765833033056,-150.0,0.00016122,2]
[398563891,1765833033065,-2544.0,0.00016122,2]
[398563892,1765833033074,-200.0,0.00016122,2]
[398563893,1765833033087,-497.0,0.00016122,2]
[398563894,1765833033097,-500.0,0.00016122,2]
[398563895,1765833033106,-500.0,0.00016122,2]
[398563896,1765833033116,-500.0,0.00016122,2]
[398563897,1765833033127,-150.0,0.00016122,2]
[398563898,1765833033136,-150.0,0.00016122,2]
[398563899,1765833033145,-500.0,0.00016122,2]
[398563900,1765833033155,-166.39372239,0.00016122,2]
[398563901,1765833033167,-500.0,0.00016122,2]
[398563902,1765833033176,-507.05705052,0.00016122,2]
[398563903,1765833033185,-500.0,0.00016122,2]
[398563904,1765833033198,-150.0,0.00016122,2]
[398563905,1765833033207,-500.0,0.00016122,2]
[398563906,1765833033219,-150.0,0.00016122,2]
[398563907,1765833033228,-150.0,0.00016122,2]
[398563908,1765833033239,-150.0,0.00016122,2]
[398563909,1765833033248,-500.0,0.00016122,2]
[398563910,1765833033259,-155.07428394,0.00016122,2]
[398563911,1765833033268,-150.0,0.00016122,2]
[398563912,1765833033278,-150.0,0.00016123,2]
[398563913,1765833033288,-150.60890833,0.00016123,2]
[398563914,1765833033298,-500.0,0.00016123,2]
[398563915,1765833033307,-500.0,0.00016123,2]
[398563916,1765833033321,-650.0,0.00016123,2]
[398563917,1765833033331,-500.0,0.00016123,2]
[398563918,1765833033342,-500.0,0.00016123,2]
[398563919,1765833033353,-150.0,0.00016123,2]
[398563920,1765833033363,-500.0,0.00016123,2]
[398563921,1765833033373,-150.0,0.00016123,2]
[398563922,1765833033383,-152.68369847,0.00016123,2]
[398563923,1765833033392,-512.3908405,0.00016123,2]
[398563924,1765833033402,-196.5865056,0.00016124,2]
[398563925,1765833033412,-500.0,0.00016124,2]
[398563926,1765833033422,-150.0,0.00016124,2]
[398563927,1765833033432,-500.0,0.00016124,2]
[398563928,1765833033442,-635.88908484,0.00016138,2]
[398563929,1765833033452,-156.00043484,0.00016138,2]
[398563930,1765833033463,-200.0,0.00016147,2]
[398563931,1765833033472,-308.64048775,0.00016147,2]
[398563932,1765833033482,-157.60922398,0.00016147,2]
[398563933,1765833033493,-300.0,0.00016147,2]
[398563934,1765833033503,-500.0,0.00016173,2]
[398563935,1765833033513,-500.0,0.00016173,2]
[398563936,1765833033523,-500.0,0.00016173,2]
[398563937,1765833033533,-242.78,0.00016206,2]
[398563938,1765833033543,-151.0,0.00016212,2]
[398563939,1765833033552,-6543.3753,0.00016213,2]
[398563940,1765833033562,-235.7645,0.00016213,2]
[398563941,1765833033572,-281.4445,0.00016213,2]
[398563942,1765833033582,-151.0,0.00016213,2]
[398563943,1765833033592,-198.71433029,0.00016215,2]
[398563944,1765833033602,-500.0,0.00016215,2]
[398563945,1765833033612,-225.99080332,0.00016215,2]
[398563946,1765833033622,-43569.28857729,0.00016216,2]
[398563966,1765833038989,-500.0,0.00016214,2]
[398563967,1765833038998,-83.72879,0.00016214,2]
[398563968,1765833039011,-416.27121,0.00016214,2]
[398563969,1765833039020,-76.90209366,0.00016214,2]
[398563970,1765833039036,-423.09790634,0.00016214,2]
[398563971,1765833039045,-302.89164955,0.00016214,2]
[398563972,1765833039055,-503.51892371,0.00016214,2]
[398563973,1765833039064,-348.24781002,0.00016214,2]
[398563974,1765833039074,-166.71198661,0.00016214,2]
[398563975,1765833039086,-251.7141662,0.00016214,2]
[398563980,1765833039732,-63.40029136,0.00016214,2]
[398563981,1765833039742,-503.51892371,0.00016214,2]
[398563982,1765833039752,-503.51892371,0.00016214,2]
[398563983,1765833039760,-503.51892371,0.00016214,2]
[398563984,1765833039769,-503.51892371,0.00016214,2]
[398563985,1765833039778,-503.51892371,0.00016214,2]
[398563986,1765833039788,-503.51892371,0.00016214,2]
[398563987,1765833039797,-222.70006895,0.00016214,2]
[398563988,1765833039808,-280.81885476,0.00016214,2]
[398563989,1765833039817,-11.18114524,0.00016214,2]
[398563990,1765833039828,-492.33777847,0.00016214,2]
[398563991,1765833039837,-503.51892371,0.00016214,2]
[398563992,1765833039846,-503.51892371,0.00016214,2]
[398563993,1765833039855,-503.51892371,0.00016214,2]
[398563994,1765833039864,-503.51892371,0.00016214,2]
[398563995,1765833039874,-503.51892371,0.00016214,2]
[398563996,1765833039883,-503.51892371,0.00016214,2]
[398563997,1765833039892,-503.51892371,0.00016214,2]
[398563998,1765833039901,-503.51892371,0.00016214,2]
[398563999,1765833039910,-503.51892371,0.00016214,2]
[398564000,1765833039920,-503.51892371,0.00016214,2]
[398564001,1765833039929,-503.51892371,0.00016214,2]
[398564002,1765833039938,-503.51892371,0.00016214,2]
[398564003,1765833039947,-503.51892371,0.00016214,2]
[398564004,1765833039956,-503.51892371,0.00016214,2]
[398564005,1765833039966,-503.51892371,0.00016214,2]
[398564006,1765833039976,-503.51892371,0.00016214,2]
[398564007,1765833039985,-503.51892371,0.00016214,2]
[398564008,1765833039994,-503.51892371,0.00016214,2]
[398564009,1765833040003,-503.51892371,0.00016214,2]
[398564010,1765833040012,-503.51892371,0.00016214,2]
[398564011,1765833040022,-503.51892371,0.00016214,2]
[398564012,1765833040030,-503.51892371,0.00016214,2]
[398564013,1765833040039,-503.51892371,0.00016214,2]
[398564014,1765833040048,-503.51892371,0.00016214,2]
[398564015,1765833040057,-503.51892371,0.00016214,2]
[398564016,1765833040067,-503.51892371,0.00016214,2]
[398564017,1765833040076,-503.51892371,0.00016214,2]
[398564018,1765833040088,-503.51892371,0.00016214,2]
[398564019,1765833040098,-503.51892371,0.00016214,2]
[398564020,1765833040107,-503.51892371,0.00016214,2]
[398564021,1765833040116,-320057.46515514,0.00016216,2]
[398564022,1765833040128,-366.43374861,0.00016216,2]
[398564023,1765833040139,-1604.53112907,0.00016216,2]
[398564024,1765833040151,-1229.70189674,0.00016216,2]
[398564025,1765833040172,-53744.77740974,0.00016216,2]
[398564026,1765833040183,-138894.53842261,0.00016216,2]
[398564027,1765833040194,-300.35996914,0.00016216,2]
[398564028,1765833040205,-110756.21200927,0.00016216,2]
[398564029,1765833040216,-1477.1,0.00016216,2]
[398564030,1765833040227,-39123.49043778,0.00016216,2]
[398564031,1765833040237,-252.636388,0.00016216,2]
[398564032,1765833040257,-1330.08239876,0.00016216,2]
[398564033,1765833040268,-6980.06561632,0.00016216,2]
[398564044,1765833042740,-595.0,0.0001585,2]
[398564045,1765833042749,-500.0,0.0001585,2]
[398564046,1765833042758,-125.63789846,0.0001585,2]
[398564047,1765833042804,-374.36210154,0.0001585,2]
[398564048,1765833042814,-500.0,0.0001585,2]
[398564049,1765833042823,-541.0,0.0001585,2]
[398564050,1765833042832,-595.0,0.00015987,2]
[398564051,1765833042843,-500.0,0.00015987,2]
[398564052,1765833042852,-500.0,0.00015987,2]
[398564053,1765833042861,-500.0,0.00015987,2]
[398564054,1765833042871,-541.0,0.00015987,2]
[398564055,1765833042881,-595.0,0.00016124,2]
[398564056,1765833042890,-500.0,0.00016124,2]
[398564057,1765833042900,-500.0,0.00016124,2]
[398564058,1765833042909,-500.0,0.00016124,2]
[398564059,1765833042918,-541.0,0.00016124,2]
[398564060,1765833042928,-40313.31684153,0.00016216,2]
[398564061,1765833042937,-150.96,0.00016238,2]
[398564062,1765833042946,-500.0,0.00016247,2]
[398564063,1765833042955,-500.0,0.00016259,2]
[398564064,1765833042966,-150.0,0.00016259,2]
[398564065,1765833042975,-2544.0,0.00016259,2]
[398564066,1765833042984,-497.0,0.00016259,2]
[398564067,1765833042993,-500.0,0.00016259,2]
[398564068,1765833043002,-165.99937066,0.00016259,2]
[398564070,1765833043012,-500.0,0.00016259,2]
[398564072,1765833043022,-150.0,0.00016259,2]
[398564073,1765833043032,-150.0,0.00016259,2]
[398564074,1765833043042,-500.0,0.00016259,2]
[398564075,1765833043051,-500.0,0.00016259,2]
[398564076,1765833043061,-500.0,0.00016259,2]
[398564077,1765833043070,-150.0,0.00016259,2]
[398564078,1765833043080,-500.0,0.00016259,2]
[398564079,1765833043093,-287.24719378,0.00016259,2]
[398564080,1765833043102,-150.0,0.00016259,2]
[398564081,1765833043112,-503.40949572,0.00016259,2]
[398564083,1765833043121,-150.0,0.00016259,2]
[398564084,1765833043132,-150.0,0.0001626,2]
[398564086,1765833043142,-297.13717614,0.0001626,2]
[398564089,1765833043152,-500.0,0.0001626,2]
[398564091,1765833043161,-500.0,0.0001626,2]
[398564092,1765833043171,-150.0,0.0001626,2]
[398564093,1765833043180,-322.6774988,0.0001626,2]
[398564094,1765833043189,-150.0,0.0001626,2]
[398564095,1765833043199,-595.0,0.00016261,2]
[398564096,1765833043208,-473.93591667,0.00016261,2]
[398564097,1765833043217,-500.0,0.00016261,2]
[398564098,1765833043227,-500.0,0.00016261,2]
[398564099,1765833043236,-150.0,0.00016261,2]
[398564100,1765833043245,-164.0,0.00016285,2]
[398564101,1765833043255,-172.45360605,0.00016296,2]
[398564102,1765833043264,-500.0,0.00016301,2]
[398564103,1765833043273,-151.0,0.00016304,2]
[398564104,1765833043282,-245.584974,0.00016304,2]
[398564105,1765833043292,-200.0,0.00016304,2]
[398564106,1765833043301,-200.0,0.00016304,2]
[398564107,1765833043310,-500.0,0.00016304,2]
[398564108,1765833043320,-161.20872846,0.00016304,2]
[398564109,1765833043329,-1000.0,0.00016304,2]
[398564110,1765833043340,-1000.0,0.00016304,2]
[398564111,1765833043349,-1000.0,0.00016304,2]
[398564112,1765833043360,-1000.0,0.00016304,2]
[398564113,1765833043369,-1000.0,0.00016304,2]
[398564114,1765833043378,-1000.0,0.00016304,2]
[398564115,1765833043387,-200.0,0.00016304,2]
[398564116,1765833043396,-1000.0,0.00016304,2]
[398564117,1765833043405,-1000.0,0.00016304,2]
[398564118,1765833043414,-1000.0,0.00016304,2]
[398564119,1765833043423,-1000.0,0.00016304,2]
[398564120,1765833043432,-1000.0,0.00016304,2]
[398564121,1765833043441,-151.0,0.00016304,2]
[398564122,1765833043450,-1000.0,0.00016304,2]
[398564123,1765833043459,-500.0,0.00016304,2]
[398564124,1765833043468,-151.0,0.00016304,2]
[398564125,1765833043477,-151.0,0.00016304,2]
[398564126,1765833043486,-1000.0,0.00016304,2]
[398564127,1765833043495,-151.0,0.00016304,2]
[398564128,1765833043504,-1000.0,0.00016304,2]
[398564129,1765833043515,-151.0,0.00016304,2]
[398564130,1765833043525,-1000.0,0.00016304,2]
[398564131,1765833043535,-151.0,0.00016304,2]
[398564132,1765833043544,-1000.0,0.00016304,2]
[398564133,1765833043553,-151.0,0.00016304,2]
[398564134,1765833043562,-1000.0,0.00016304,2]
[398564135,1765833043571,-176.89868195,0.00016304,2]
[398564136,1765833043580,-1000.0,0.00016304,2]
[398564137,1765833043590,-1000.0,0.00016304,2]
[398564138,1765833043599,-1000.0,0.00016304,2]
[398564139,1765833043607,-197.76511705,0.00016304,2]
[398564140,1765833043616,-1000.0,0.00016304,2]
[398564141,1765833043626,-1000.0,0.00016304,2]
[398564142,1765833043635,-1000.0,0.00016304,2]
[398564143,1765833043644,-151.0,0.00016304,2]
[398564144,1765833043653,-151.0,0.00016304,2]
[398564145,1765833043662,-151.0,0.00016304,2]
[398564146,1765833043672,-151.0,0.00016304,2]
[398564147,1765833043681,-151.0,0.00016304,2]
[398564148,1765833043690,-151.0,0.00016304,2]
[398564149,1765833043700,-151.0,0.00016304,2]
[398564150,1765833043708,-151.0,0.00016311,2]
[398564151,1765833043717,-151.0,0.00016311,2]
[398564152,1765833043725,-216.39132,0.00016311,2]
[398564153,1765833043734,-8721.88160797,0.00016313,2]
[398564154,1765833043744,-199.0,0.00016313,2]
[398564155,1765833043755,-150.41,0.00016316,2]
[398564156,1765833043766,-150.76,0.00016316,2]
[398564157,1765833043775,-7817.7392852,0.00016316,2]
[398564158,1765833043784,-27242.6847689,0.00016316,2]
[398564159,1765833043793,-1287.5740012,0.00016316,2]
[398564160,1765833043802,-1427.7158678,0.00016316,2]
[398564161,1765833043811,-524.546678,0.00016316,2]
[398564162,1765833043821,-524.546678,0.00016316,2]
[398564163,1765833043831,-524.546678,0.00016316,2]
[398564164,1765833043840,-524.546678,0.00016316,2]
[398564165,1765833043849,-151.0,0.00016316,2]
[398564166,1765833043859,-151.0,0.00016316,2]
[398564167,1765833043868,-151.0,0.00016316,2]
[398564168,1765833043876,-151.0,0.00016316,2]
[398564169,1765833043886,-151.0,0.00016316,2]
[398564170,1765833043896,-151.0,0.00016316,2]
[398564171,1765833043905,-151.640692,0.00016319,2]
[398564172,1765833043914,-407.926795,0.00016319,2]